fUSD/lending_fUSD_20251019
["ID","MTS","AMOUNT","RATE_DAILY","PERIOD"]
[391808601,1760861454712,-151.0,0.00032399,30]
[391808602,1760861454721,-151.0,0.00032399,30]
[391808603,1760861454731,-151.0,0.00032399,30]
[391808604,1760861454740,-151.0,0.00032399,30]
[391808605,1760861454749,-155.12478301,0.00032399,8]
[391808606,1760861454759,-345.816669,0.00032399,30]
[391808607,1760861454768,-151.0,0.00032399,30]
[391808608,1760861454777,-345.816669,0.00032399,30]
[391808609,1760861454787,-151.0,0.00032399,30]
[391808610,1760861454796,-290.147261,0.00032399,30]
[391808611,1760861454806,-151.0,0.00032399,30]
[391808612,1760861454815,-345.816669,0.00032399,30]
[391808613,1760861454825,-151.0,0.00032399,30]
[391808614,1760861454834,-345.816678,0.00032399,30]
[391808615,1760861454844,-434.435614,0.00032399,30]
[391808616,1760861454853,-720.36,0.00032399,8]
[391808617,1760861454863,-720.36,0.00032399,8]
[391808618,1760861454873,-434.435614,0.00032399,30]
[391808619,1760861454883,-720.36,0.00032399,8]
[391808620,1760861454892,-720.36,0.00032399,8]
[391808621,1760861454901,-720.36,0.00032399,8]
[391808622,1760861454911,-720.36,0.00032399,8]
[391808623,1760861454921,-434.435614,0.00032399,30]
[391808624,1760861454930,-434.43562,0.00032399,30]
[391808625,1760861454939,-151.0,0.00032399,30]
[391808626,1760861454948,-609.436513,0.00032399,30]
[391808627,1760861454958,-609.436513,0.00032399,30]
[391808628,1760861454967,-258.356315,0.00032399,30]
[391808629,1760861454976,-609.436513,0.00032399,30]
[391808630,1760861454986,-258.356315,0.00032399,30]
[391808631,1760861454996,-609.436515,0.00032399,30]
[391808632,1760861455006,-258.356315,0.00032399,30]
[391808633,1760861455016,-2078.91,0.00032399,8]
[391808634,1760861455024,-2078.91,0.00032399,8]
[391808635,1760861455033,-2078.91,0.00032399,8]
[391808636,1760861455042,-258.356314,0.00032399,30]
[391808637,1760861455051,-2078.91,0.00032399,8]
[391808638,1760861455060,-2078.91,0.00032399,8]
[391808639,1760861455070,-2078.91,0.00032399,8]
[391808640,1760861455079,-2078.91,0.00032399,8]
[391808641,1760861455088,-150.0,0.00032399,2]
[391808642,1760861455097,-1230503.33953549,0.000324,4]
[391808643,1760861455110,-225689.28803004,0.000324,4]
[391808644,1760861455120,-5172.62,0.000324,7]
[391808645,1760861455129,-13848.17,0.000324,2]
[391808646,1760861455138,-151.0,0.000324,30]
[391808647,1760861455148,-151.0,0.000324,30]
[391808648,1760861455157,-151.0,0.000324,15]
[391808649,1760861455166,-151.0,0.000324,15]
[391808650,1760861455176,-151.0,0.000324,30]
[391808651,1760861455185,-151.0,0.000324,30]
[391808652,1760861455194,-151.0,0.000324,30]
[391808653,1760861455203,-151.0,0.000324,30]
[391808654,1760861455212,-155.114931,0.000324,30]
[391808655,1760861455222,-155.114931,0.000324,30]
[391808656,1760861455231,-155.114931,0.000324,30]
[391808657,1760861455240,-155.114933,0.000324,30]
[391808658,1760861455249,-151.0,0.000324,30]
[391808659,1760861455258,-160.557456,0.000324,30]
[391808660,1760861455268,-151.0,0.000324,30]
[391808661,1760861455277,-1072.883028,0.000324,30]
[391808662,1760861455286,-1072.883028,0.000324,30]
[391808663,1760861455296,-1072.883028,0.000324,30]
[391808664,1760861455305,-1072.883022,0.000324,30]
[391808665,1760861455314,-703.904807,0.000324,30]
[391808666,1760861455324,-151.0,0.000324,30]
[391808667,1760861455333,-556.017671,0.000324,30]
[391808668,1760861455343,-703.904807,0.000324,30]
[391808669,1760861455352,-151.0,0.000324,30]
[391808670,1760861455361,-556.017671,0.000324,30]
[391808671,1760861455370,-703.904807,0.000324,30]
[391808672,1760861455380,-187.304561,0.000324,30]
[391808673,1760861455389,-151.0,0.000324,30]
[391808674,1760861455398,-556.017671,0.000324,30]
[391808675,1760861455407,-703.904816,0.000324,30]
[391808676,1760861455417,-151.0,0.000324,30]
[391808677,1760861455427,-556.017662,0.000324,30]
[391808678,1760861455436,-151.0,0.000324,30]
[391808679,1760861455445,-151.0,0.000324,30]
[391808680,1760861455456,-151.0,0.000324,30]
[391808681,1760861455465,-151.0,0.000324,30]
[391808682,1760861455476,-151.0,0.000324,30]
[391808683,1760861455485,-151.0,0.000324,30]
[391808684,1760861455495,-202.65662524,0.000324,6]
[391808685,1760861455504,-438.539403,0.000324,2]
[391808686,1760861455514,-10579.60202562,0.000324,2]
[391808687,1760861455523,-1336.18910613,0.000324,2]
[391808688,1760861455533,-151.0,0.000324,30]
[391808689,1760861455543,-151.0,0.000324,30]
[391808690,1760861455553,-151.0,0.000324,30]
[391808691,1760861455563,-151.0,0.000324,30]
[391808692,1760861455572,-208.672767,0.000324,30]
[391808693,1760861455582,-208.672767,0.000324,30]
[391808694,1760861455592,-208.672767,0.000324,30]
[391808695,1760861455601,-208.672767,0.000324,30]
[391808696,1760861455611,-208.468386,0.000324,30]
[391808697,1760861455620,-208.672767,0.000324,30]
[391808698,1760861455629,-208.672767,0.000324,30]
[391808699,1760861455642,-208.672767,0.000324,30]
[391808700,1760861455651,-208.672761,0.000324,30]
[391808701,1760861455661,-151.0,0.000324,30]
[391808702,1760861455670,-151.0,0.000324,30]
[391808703,1760861455679,-151.0,0.000324,30]
[391808704,1760861455688,-151.0,0.000324,30]
[391808705,1760861455697,-151.0,0.000324,30]
[391808706,1760861455706,-151.0,0.000324,30]
[391808707,1760861455715,-151.0,0.000324,30]
[391808708,1760861455724,-151.0,0.000324,30]
[391808709,1760861455733,-1039.976836,0.000324,30]
[391808710,1760861455742,-1039.976836,0.000324,30]
[391808711,1760861455752,-1039.976836,0.000324,30]
[391808712,1760861455761,-1039.976836,0.000324,30]
[391808713,1760861455770,-1039.976836,0.000324,30]
[391808714,1760861455779,-1039.976836,0.000324,30]
[391808715,1760861455789,-1425.0,0.00032427,2]
[391808716,1760861455798,-252.882,0.00032444,7]
[391808717,1760861455807,-412.69420133,0.00032459,2]
[391808718,1760861455817,-150.0,0.00032463,30]
[391808719,1760861455826,-482.85048156,0.00032463,30]
[391808720,1760861455835,-150.0,0.00032463,30]
[391808721,1760861455844,-3672.22939115,0.00032463,30]
[391808722,1760861455854,-431.2,0.00032463,8]
[391808723,1760861455863,-150.0,0.00032463,30]
[391808724,1760861455873,-1121.68613357,0.00032463,30]
[391808725,1760861455882,-720.36,0.00032464,8]
[391808726,1760861455892,-134524.87516868,0.00032465,31]
[391808727,1760861455902,-11417.80182359,0.00032465,2]
[391808728,1760861455911,-2413.78993773,0.00032465,2]
[391808729,1760861455921,-1334.5962397,0.00032465,30]
[391808730,1760861455930,-1334.5962397,0.00032465,30]
[391808731,1760861455940,-1334.5962397,0.00032465,30]
[391808732,1760861455948,-1334.5962397,0.00032465,30]
[391808733,1760861455958,-1334.5962397,0.00032465,30]
[391808734,1760861455968,-1334.5962397,0.00032465,30]
[391808735,1760861455978,-1334.5962397,0.00032465,30]
[391808736,1760861455988,-1334.5962397,0.00032465,30]
[391808737,1760861455997,-1334.5962397,0.00032465,30]
[391808738,1760861456006,-1334.5962397,0.00032465,30]
[391808739,1760861456016,-1334.5962397,0.00032465,30]
[391808740,1760861456024,-1334.5962397,0.00032465,30]
[391808741,1760861456033,-1334.5962397,0.00032465,30]
[391808742,1760861456043,-1334.5962397,0.00032465,30]
[391808743,1760861456052,-1334.5962397,0.00032465,30]
[391808744,1760861456062,-1334.5962397,0.00032465,30]
[391808745,1760861456072,-1334.5962397,0.00032465,30]
[391808746,1760861456081,-1334.5962397,0.00032465,30]
[391808747,1760861456090,-1334.5962397,0.00032465,30]
[391808748,1760861456099,-1334.59,0.00032465,30]
[391808749,1760861456108,-3114.05789263,0.00032465,30]
[391808750,1760861456117,-3114.05789263,0.00032465,30]
[391808751,1760861456127,-3114.05789263,0.00032465,30]
[391808752,1760861456136,-3114.05789263,0.00032465,30]
[391808753,1760861456145,-3114.05789263,0.00032465,30]
[391808754,1760861456155,-3114.05789263,0.00032465,30]
[391808755,1760861456164,-3114.05789263,0.00032465,30]
[391808756,1760861456174,-3114.05789263,0.00032465,30]
[391808757,1760861456183,-3114.05789263,0.00032465,30]
[391808758,1760861456193,-3114.05789263,0.00032465,30]
[391808759,1760861456203,-1260.12691962,0.00032465,30]
[391808760,1760861456215,-1853.93097301,0.00032465,30]
[391808761,1760861456225,-3114.05789263,0.00032465,30]
[391808762,1760861456235,-3114.05789263,0.00032465,30]
[391808763,1760861456244,-3114.05789263,0.00032465,30]
[391808764,1760861456253,-3114.05789263,0.00032465,30]
[391808765,1760861456263,-3114.05789263,0.00032465,30]
[391808766,1760861456272,-3114.05789263,0.00032465,30]
[391808767,1760861456281,-1961.73691214,0.00032465,30]
[391808768,1760861456292,-1152.32098049,0.00032465,30]
[391808769,1760861456301,-3006.22321908,0.00032465,30]
[391808770,1760861456311,-3006.22321908,0.00032465,30]
[391808771,1760861456320,-3006.22321908,0.00032465,30]
[391808772,1760861456329,-1448.35631975,0.00032465,30]
[391808773,1760861456412,-438.06208396,0.0002722,2]
[391808774,1760861456422,-1039.976836,0.00031154,30]
[391808775,1760861456432,-1039.976836,0.000323,30]
[391808776,1760861456442,-1039.976836,0.000324,30]
[391808777,1760861456451,-1039.97683,0.000324,30]
[391808778,1760861456461,-1557.86689933,0.00032465,30]
[391808779,1760861456471,-3006.22321908,0.00032465,30]
[391808780,1760861456480,-3006.22321908,0.00032465,30]
[391808781,1760861456490,-3006.22321908,0.00032465,30]
[391808782,1760861456499,-3006.22321908,0.00032465,30]
[391808783,1760861456509,-3006.22321908,0.00032465,30]
[391808784,1760861456519,-3006.22321908,0.00032465,30]
[391808785,1760861456528,-199.8331109,0.00032465,30]
[391808786,1760861456540,-1252.36147321,0.00032465,30]
[391808787,1760861456552,-1554.02863497,0.00032465,30]
[391808788,1760861456563,-3006.22321908,0.00032465,30]
[391808789,1760861456572,-2939.74814595,0.00032465,30]
[391808790,1760861456986,-66.47507313,0.00032465,30]
[391808791,1760861457004,-275.63736298,0.00032465,30]
[391808793,1760861648591,4947.01467,7.945e-05,2]
[391808794,1760862308591,3000000.0,0.00015,2]
[391808795,1760862308625,10000.0,0.00015,2]
[391808796,1760862308663,632.98533,0.00015,2]
[391808801,1760862407833,304.25,0.00013699,2]
[391808823,1760862632135,-254.95664668,0.000149,2]
[391808826,1760862632144,-162.76170028,0.000149,2]
[391808829,1760862632154,-216.30504304,0.00014998,2]
[391808831,1760862632166,-614.1243198,0.00014998,2]
[391808834,1760862632190,-369.57063716,0.00014998,2]
[391808836,1760862632199,-300.0,0.00014998,2]
[391808838,1760862632209,-1000.0,0.00014999,2]
[391808840,1760862632218,-500.0,0.00014999,2]
[391808842,1760862632227,-306.64345877,0.00014999,2]
[391808844,1760862632240,-500.0,0.00014999,2]
[391808845,1760862632249,-292.83211375,0.00014999,2]
[391808846,1760862632258,-156.9531157,0.00014999,2]
[391808847,1760862632267,-500.0,0.00014999,2]
[391808849,1760862632278,-500.0,0.00014999,2]
[391808850,1760862632287,-500.0,0.00014999,2]
[391808851,1760862632297,-400.95072376,0.00014999,2]
[391808852,1760862632306,-500.0,0.00014999,2]
[391808853,1760862632318,-500.0,0.00014999,2]
[391808854,1760862632328,-501.84927579,0.00014999,2]
[391808855,1760862632338,-500.0,0.00014999,2]
[391808856,1760862632348,-500.0,0.00014999,2]
[391808857,1760862632360,-500.0,0.00014999,2]
[391808858,1760862632370,-500.0,0.00014999,2]
[391808859,1760862632379,-500.0,0.00014999,2]
[391808860,1760862632389,-500.0,0.00014999,2]
[391808861,1760862632399,-500.0,0.00014999,2]
[391808862,1760862632408,-500.0,0.00014999,2]
[391808863,1760862632418,-500.0,0.00014999,2]
[391808864,1760862632427,-500.0,0.00014999,2]
[391808865,1760862632439,-500.0,0.00014999,2]
[391808866,1760862632447,-268.20127589,0.00014999,2]
[391808867,1760862632457,-500.0,0.00014999,2]
[391808868,1760862632466,-180.23404476,0.00014999,2]
[391808870,1760862632475,-291.52986556,0.00014999,2]
[391808872,1760862632484,-1158.82100279,0.00014999,5]
[391808874,1760862632494,-91872.41448605,0.00015,2]
[391808876,1760862632505,-803.67,0.00015,2]
[391808878,1760862632515,-1769.69684032,0.00015,2]
[391808879,1760862632525,-512.4014,0.00015,2]
[391808882,1760862632538,-302.0,0.00015,2]
[391808914,1760862632976,-653.44080953,0.00015,2]
[391808915,1760862632987,-1058.6,0.00015,2]
[391808916,1760862632998,-165755.68153489,0.00015,2]
[391808917,1760862633010,-400.76201455,0.00015,2]
[391808921,1760862638108,-1931.83004046,0.00015,2]
[391808922,1760862638162,-14297.25589468,0.00015,2]
[391808923,1760862638287,-850.0,0.00015,2]
[391808924,1760862638298,-471.16774819,0.00015,2]
[391809094,1760862640129,-2244.31236086,0.00015,2]
[391809096,1760862640140,-936.16296,0.00015,2]
[391809098,1760862640152,-2476.97451111,0.00015,2]
[391809108,1760862640238,-285.91649996,0.00015,2]
[391809111,1760862640250,-80376.36469305,0.00015,2]
[391809113,1760862640259,-82495.94219729,0.00015,2]
[391809115,1760862640271,-194628.74117994,0.00015,2]
[391809117,1760862640282,-2775.00000054,0.00015,2]
[391809119,1760862640295,-1930.89999995,0.00015,2]
[391809122,1760862640306,-5497.39518433,0.00015,2]
[391809127,1760862640349,-509.66001,0.00015,2]
[391809139,1760862640458,-5625.77047972,0.00015,2]
[391809141,1760862640469,-3783.3846,0.00015,2]
[391809144,1760862640481,-1387.3526648,0.00015,2]
[391809148,1760862640512,-1056.45,0.00015,2]
[391809424,1760862643488,-3165.763066,0.00015,2]
[391809425,1760862643499,-2857.96098642,0.00015,2]
[391809426,1760862643510,-860.4182736,0.00015,2]
[391809427,1760862643521,-100243.77805491,0.00015,2]
[391809441,1760862646412,-5638.84991581,0.00015,2]
[391809442,1760862646424,-4243.25647258,0.00015,2]
[391809443,1760862646540,-477.52643034,0.00015,2]
[391809444,1760862646594,-555.68973253,0.00015,2]
[391809445,1760862646652,-4388.77002948,0.00015,2]
[391809446,1760862646708,-1202.81999996,0.00015,2]
[391809447,1760862646719,-76985.33898426,0.00015,2]
[391809453,1760862872611,-298.72270789,0.00014825,2]
[391809454,1760863171990,629.14,9.098e-05,2]
[391809455,1760863172210,629.14,9.577e-05,2]
[391809456,1760863172407,629.14,0.00010055,2]
[391809457,1760863172800,629.14,0.00010534,2]
[391809458,1760863172997,629.14,0.00011013,2]
[391809459,1760863173200,629.14,0.00011492,2]
[391809460,1760863173407,629.14,0.00011971,2]
[391809461,1760863173613,629.14,0.0001245,2]
[391809462,1760863173988,629.14,0.00012928,2]
[391809463,1760863174034,629.14,0.00013407,2]
[391809464,1760863174208,629.14,0.00013886,2]
[391809465,1760863174409,629.14,0.00014365,2]
[391809466,1760863270264,800.28866223,0.0001462,2]
[391809467,1760863293100,-13.43875011,0.00014825,2]
[391809468,1760863293123,-300.0,0.0001483,2]
[391809470,1760863300430,-500.0,0.00014834,2]
[391809471,1760863306917,-629.14,0.00014844,2]
[391809474,1760863316906,-636.50877359,0.000149,2]
[391809475,1760863316929,-970.1478,0.000149,2]
[391809476,1760863335854,-500.0,0.00014985,2]
[391809478,1760863365922,-414.66523857,0.00014991,2]
[391809479,1760863365945,-1200.0,0.00014997,2]
[391809480,1760863365965,-300.0,0.00014998,2]
[391809481,1760863365988,-1200.0,0.00014998,2]
[391809482,1760863366018,-500.0,0.00014999,2]
[391809483,1760863366042,-500.0,0.00014999,2]
[391809484,1760863366065,-350.0,0.00014999,2]
[391809485,1760863366089,-425.25755305,0.00014999,2]
[391809486,1760863366117,-500.0,0.00014999,2]
[391809487,1760863366139,-324.85149301,0.00014999,2]
[391809488,1760863366160,-14285.22571537,0.00015,2]
[391809489,1760863385285,-4759.47636283,0.00015,2]
[391809490,1760863385313,-2041.88419103,0.00015,2]
[391809491,1760863385342,-4759.47636283,0.00015,2]
[391809492,1760863385353,-2041.88419103,0.00015,2]
[391809493,1760863385371,-5799.33245404,0.00015,2]
[391809494,1760863385381,-3863.4435585,0.00015,2]
[391809495,1760863385390,-188.985767,0.00015,2]
[391809496,1760863385399,-195.0,0.00015118,2]
[391809497,1760863385408,-151.0,0.00015237,2]
[391809498,1760863385417,-151.0,0.00015241,2]
[391809499,1760863385426,-151.0,0.00015247,2]
[391809500,1760863385438,-151.0,0.00015261,2]
[391809501,1760863385447,-629.14,0.00015323,2]
[391809502,1760863385456,-629.14,0.00015801,2]
[391809503,1760863385466,-150.68,0.00015875,2]
[391809504,1760863385475,-337.55711274,0.00015972,2]
[391809507,1760863426383,-151.0,0.00015284,2]
[391809508,1760863426413,-671.46813954,0.00015972,2]
[391809509,1760863426441,-1299.4,0.000162,5]
[391809510,1760863426469,-800.28866224,0.00016268,2]
[391809511,1760863426487,-151.0,0.0001628,2]
[391809512,1760863426497,-478.14,0.0001628,2]
[391809513,1760863426507,-193.32813954,0.00016308,2]
[391809514,1760863426518,-1.67186046,0.00016308,2]
[391809515,1760863426528,-250.0,0.00016308,2]
[391809516,1760863426538,-300.0,0.00016308,2]
[391809517,1760863426547,-195.0,0.00016308,2]
[391809518,1760863426557,-315.76558928,0.00016308,2]
[391809519,1760863426567,-236.96255026,0.00016308,2]
[391809520,1760863426578,-13.03744974,0.00016308,2]
[391809521,1760863426588,-500.0,0.00016308,2]
[391809522,1760863426597,-287.2512125,0.00016308,2]
[391809523,1760863426608,-12.7487875,0.00016308,2]
[391809524,1760863426618,-142.93760894,0.00016308,2]
[391809525,1760863472807,-157.06239106,0.00016308,2]
[391809526,1760863472837,-420.0,0.00016415,2]
[391809527,1760863472871,-2322.21403679,0.00016484,2]
[391809528,1760863472903,-300.0,0.00016484,2]
[391809529,1760863472937,-1680.0,0.00016497,2]
[391809530,1760863472960,-157.06239106,0.000165,2]
[391809531,1760863472973,-342.93760894,0.000165,2]
[391809532,1760863472982,-77.06239106,0.000165,2]
[391809533,1760863472994,-117.93760894,0.000165,2]
[391809534,1760863473005,-1451.0,0.00016503,2]
[391809535,1760863473015,-753.27642785,0.00016536,2]
[391809536,1760863473032,-291.72357215,0.00016536,2]
[391809537,1760863473042,-8.27642785,0.00016759,2]
[391809538,1760863473054,-620.86357215,0.00016759,2]
[391809539,1760863473063,-188.985767,0.00016868,2]
[391809540,1760863473073,-870.15066085,0.00016871,2]
[391809541,1760863473094,-129.84933915,0.00016871,2]
[391809542,1760863473103,-111.59780515,0.00016872,2]
[391809543,1760863555488,-3751.84575335,0.00016872,2]
[391809544,1760863555521,-500.0,0.00016923,2]
[391809545,1760863555553,-427.98325287,0.00016923,2]
[391809546,1760863555583,-300.0,0.00016923,2]
[391809547,1760863670135,-151.0,0.00016914,2]
[391809548,1760863670164,-151.0,0.00016914,2]
[391809549,1760863670193,-151.0,0.00016914,2]
[391809550,1760863670221,-151.0,0.00016914,2]
[391809551,1760863670251,-151.0,0.00016914,2]
[391809552,1760863670279,-151.0,0.00016914,2]
[391809553,1760863670309,-152.0664384,0.00016914,2]
[391809554,1760863670340,-151.0,0.00016914,2]
[391809555,1760863670369,-151.0,0.00016914,2]
[391809556,1760863670398,-151.0,0.00016914,2]
[391809557,1760863670427,-151.0,0.00016914,2]
[391809558,1760863670455,-283.87306375,0.00016914,2]
[391809566,1760863832348,-787.2192929,0.00016595,2]
[391809567,1760863832358,-527.06318,0.00016923,2]
[391809568,1760863832368,-300.0,0.00016923,2]
[391809569,1760863832378,-1200.0,0.00016923,2]
[391809570,1760863832388,-629.14,0.00017238,2]
[391809571,1760863832397,-629.14,0.00017717,2]
[391809572,1760863832407,-984.4895271,0.00018127,2]
[391809573,1760863832420,-867.9304729,0.00018127,2]
[391809574,1760863832430,-629.14,0.00018195,2]
[391809575,1760863832440,-1591.13,0.00018202,2]
[391809576,1760863832450,-166.66,0.00018232,2]
[391809577,1760863832461,-327.0,0.0001836,2]
[391809578,1760863832470,-592.0,0.00018396,2]
[391809579,1760863832480,-1531.0,0.00018416,2]
[391809580,1760863832489,-1552.0,0.00018433,2]
[391809581,1760863832500,-944.0,0.00018453,2]
[391809582,1760863832510,-420.0,0.00018485,2]
[391809583,1760863832520,-1214.0,0.00018489,2]
[391809584,1760863832530,-833.0,0.00018526,2]
[391809585,1760863832540,-2566.51,0.0001856,2]
[391809586,1760863832549,-1043.0,0.00018577,2]
[391809587,1760863832560,-2500.0,0.00018615,2]
[391809588,1760863832570,-166.66,0.00018616,2]
[391809589,1760863832579,-787.2192929,0.00018702,2]
[391809590,1760863832589,-610.0,0.00018725,2]
[391809591,1760863832599,-188.985767,0.00018735,2]
[391809592,1760863832609,-3863.4435585,0.00018744,2]
[391809593,1760863832619,-490.0,0.00018848,2]
[391809594,1760863832629,-7359.67821121,0.00018866,2]
[391809595,1760863832641,-630.53991,0.00018866,2]
[391809596,1760863832654,-10830.0933554,0.00018866,2]
[391809597,1760863832665,-527.06319,0.00018923,2]
[391809598,1760863832676,-250.0,0.00018957,2]
[391809599,1760863832685,-166.66,0.00019,2]
[391809600,1760863832695,-343.24206283,0.00019,2]
[391809601,1760863832704,-4713.7,0.00019135,2]
[391809602,1760863832715,-215.0,0.00019198,2]
[391809603,1760863832724,-215.0,0.00019199,2]
[391809604,1760863832734,-5006.4,0.00019222,2]
[391809605,1760863832744,-215.0,0.00019241,2]
[391809606,1760863832754,-215.0,0.00019273,2]
[391809607,1760863832764,-215.0,0.00019322,2]
[391809608,1760863832774,-166.66,0.00019384,2]
[391809609,1760863832784,-215.0,0.0001939,2]
[391809611,1760863832793,-173.00639177,0.00019402,2]
[391809613,1760863832805,-41.99360823,0.00019402,2]
[391809615,1760863832815,-215.0,0.00019402,2]
[391809617,1760863832825,-215.0,0.00019458,2]
[391809619,1760863832835,-53.89439177,0.00019688,2]
[391809622,1760863832848,-161.10560823,0.00019688,2]
[391809624,1760863832861,-374.90439177,0.00019726,2]
[391809659,1760863833124,-155.80560823,0.00019726,2]
[391809661,1760863833134,-166.66,0.00019767,2]
[391809663,1760863833144,-215.0,0.00019801,2]
[391809665,1760863833155,-215.0,0.00019999,2]
[391809668,1760863833165,-166.66,0.00020151,2]
[391809670,1760863833176,-304.25,0.00020187,2]
[391809672,1760863833185,-261.0,0.00020191,2]
[391809674,1760863833195,-215.0,0.000202,2]
[391809676,1760863833204,-215.0,0.0002032,2]
[391809677,1760863833214,-215.0,0.00020356,2]
[391809679,1760863833223,-215.0,0.00020452,2]
[391809682,1760863833233,-188.985767,0.00020603,2]
[391809683,1760863833241,-2400.28290525,0.00020616,2]
[391809686,1760863833259,-1463.16065325,0.00020616,2]
[391809688,1760863833269,-162.51,0.00020622,2]
[391809690,1760863833277,-215.0,0.00020623,2]
[391809692,1760863833286,-215.0,0.00020656,2]
[391809694,1760863833297,-215.0,0.00020671,2]
[391809696,1760863833306,-215.0,0.00020746,2]
[391809698,1760863833316,-215.0,0.00020747,2]
[391809700,1760863833326,-176.78452275,0.000208,2]
[391809702,1760863833335,-1845.04316729,0.000208,2]
[391809704,1760863833344,-787.2192929,0.00020808,2]
[391809706,1760863833353,-215.0,0.00020814,2]
[391809724,1760863833514,-475.82771539,0.00020831,2]
[391809726,1760863833524,-215.0,0.00020832,2]
[391809728,1760863833533,-92.16137342,0.00020851,2]
[391809731,1760863833547,-1019.53631486,0.00020851,2]
[391809733,1760863833556,-215.0,0.00020863,2]
[391809735,1760863833566,-527.06319,0.00020923,2]
[391809737,1760863833575,-169.72391139,0.00020926,2]
[391809739,1760863833589,-45.27608861,0.00020926,2]
[391809741,1760863833598,-3084.86046854,0.00020951,2]
[391809867,1760863838278,-1000.0,0.00020951,2]
[391809868,1760863838331,-351.88118535,0.00020951,2]
[391809869,1760863838385,-1476.42,0.00020951,2]
[391809870,1760863838441,-1000.18778537,0.00020951,2]
[391809871,1760863838453,-865.69,0.00020951,2]
[391809872,1760863838465,-2354.59056074,0.00020951,2]
[391809873,1760863838474,-221.21,0.00020951,2]
[391809874,1760863838484,-381.42825687,0.00020951,2]
[391809875,1760863838495,-538.88523328,0.00020951,2]
[391809876,1760863838507,-1017.71650985,0.00020951,2]
[391809877,1760863838517,-1845.04316729,0.00021,2]
[391809878,1760863838526,-1845.04316729,0.000212,2]
[391809879,1760863838535,-500.0,0.00021375,2]
[391809880,1760863838544,-20000.0,0.00021414,2]
[391809882,1760863838554,-6694.2374773,0.000215,2]
[391809883,1760863838563,-1845.04316729,0.000215,2]
[391809884,1760863838575,-756.289,0.00021542,2]
[391809885,1760863838584,-500.0,0.00021546,2]
[391809886,1760863838594,-204.11637777,0.00021546,2]
[391809887,1760863838604,-367.80969818,0.00021546,2]
[391809888,1760863838614,-500.0,0.00021546,2]
[391809889,1760863838624,-500.0,0.00021546,2]
[391809890,1760863838633,-466.57589814,0.00021546,2]
[391809891,1760863838643,-500.0,0.00021546,2]
[391809892,1760863838653,-187.9211413,0.00021546,2]
[391809893,1760863838662,-1331.825,0.00021547,2]
[391809894,1760863838671,-612.34,0.00021547,2]
[391809895,1760863838681,-579.029,0.00021547,2]
[391809897,1760863838691,-1601.782,0.00021547,2]
[391809899,1760863838702,-819.0,0.00021547,2]
[391809901,1760863838712,-1187.56496469,0.00021547,2]
[391809903,1760863838728,-1402.43503531,0.00021547,2]
[391809904,1760863838738,-1789.37796468,0.00021547,2]
[391809909,1760863840338,-4649.62203532,0.00021547,2]
[391809910,1760863840348,-150.0,0.00021547,2]
[391809911,1760863840358,-5393.79986288,0.00021547,2]
[391809912,1760863840392,-1087.87013712,0.00021547,2]
[391809913,1760863840401,-1188.706,0.00021547,2]
[391809914,1760863840411,-5998.0,0.00021547,2]
[391809915,1760863840420,-1845.04316729,0.000217,2]
[391809916,1760863840430,-343.4,0.00021757,2]
[391809917,1760863840439,-9034.38728838,0.00021757,2]
[391809918,1760863840649,-965.60271162,0.00021757,2]
[391809919,1760863840659,-999.99,0.00021757,2]
[391809920,1760863840668,-2503.4,0.00021757,2]
[391809921,1760863840677,-150.99,0.00021757,2]